[Event "Titled Tuesday Blitz May 30 Early 2023"]
[White "Rozen, Eytan"]
[Black "Jakubowski, Krzysztof"]
[WhiteFideId "2816750"]
[BlackFideId "1112848"]
[WhiteElo "2451"]
[BlackElo "2359"]
[Result "1-0"]
[Round "04"]
[TimeControl "180+2"]
[Date "2023.05.30"]
[WhiteClock "0:00:26"]
[BlackClock "0:01:22"]

1. c4 {[%clk 0:03:00]}  e5 {[%clk 0:02:57]} 2. Nc3 {[%clk 0:02:59]}  Nc6 {[%clk 0:02:57]} 3. g3 {[%clk 0:02:56]}  g6 {[%clk 0:02:57]} 4. Bg2 {[%clk 0:02:57]}  Bg7 {[%clk 0:02:57]} 5. d3 {[%clk 0:02:53]}  d6 {[%clk 0:02:57]} 6. e3 {[%clk 0:02:52]}  f5 {[%clk 0:02:53]} 7. Nge2 {[%clk 0:02:51]}  Nh6 {[%clk 0:02:53]} 8. O-O {[%clk 0:02:50]}  O-O {[%clk 0:02:53]} 9. Rb1 {[%clk 0:02:48]}  Nf7 {[%clk 0:02:46]} 10. Nd5 {[%clk 0:02:43]}  Be6 {[%clk 0:02:37]} 11. b4 {[%clk 0:02:36]}  Qd7 {[%clk 0:02:37]} 12. b5 {[%clk 0:02:34]}  Ncd8 {[%clk 0:02:37]} 13. Ba3 {[%clk 0:02:31]}  c6 {[%clk 0:02:36]} 14. bxc6 {[%clk 0:02:14]}  bxc6 {[%clk 0:02:36]} 15. Ndc3 {[%clk 0:02:13]}  g5 {[%clk 0:02:34]} 16. Qa4 {[%clk 0:01:58]}  h5 {[%clk 0:02:20]} 17. d4 {[%clk 0:01:49]}  exd4 {[%clk 0:02:12]} 18. Nxd4 {[%clk 0:01:43]}  Rc8 {[%clk 0:02:11]} 19. Rfd1 {[%clk 0:01:40]}  f4 {[%clk 0:02:09]} 20. Nxe6 {[%clk 0:01:30]}  Nxe6 {[%clk 0:02:03]} 21. Ne4 {[%clk 0:01:30]}  fxe3 {[%clk 0:01:54]} 22. fxe3 {[%clk 0:01:28]}  Be5 {[%clk 0:01:46]} 23. Qc2 {[%clk 0:01:10]}  h4 {[%clk 0:01:39]} 24. Nxd6 {[%clk 0:00:55]}  Nxd6 {[%clk 0:01:36]} 25. Qg6+ {[%clk 0:00:38]}  Ng7 {[%clk 0:01:36]} 26. Bxd6 {[%clk 0:00:30]}  Bxd6 {[%clk 0:01:34]} 27. Rxd6 {[%clk 0:00:31]}  Qe7 {[%clk 0:01:35]} 28. Be4 {[%clk 0:00:25]}  hxg3 {[%clk 0:01:22]} 29. Qh7+ {[%clk 0:00:25]}  Kf7 {[%clk 0:01:22]} 30. Bg6# {[%clk 0:00:26]} 1-0


[Site "https://www.chess.com"]

[Event "Titled Tuesday Blitz May 30 Early 2023"]
[White "SashaKuzhilniy"]
[Black "Vitiugov, Nikita"]
[BlackFideId "4152956"]
[WhiteElo "2631"]
[BlackElo "2673"]
[Result "0-1"]
[Round "04"]
[TimeControl "180+2"]
[Date "2023.05.30"]
[WhiteClock "0:00:14"]
[BlackClock "0:00:23"]

1. b3 {[%clk 0:03:00]}  e5 {[%clk 0:02:59]} 2. Bb2 {[%clk 0:03:01]}  Nc6 {[%clk 0:02:59]} 3. c4 {[%clk 0:03:01]}  Nge7 {[%clk 0:02:57]} 4. e3 {[%clk 0:03:01]}  d5 {[%clk 0:02:56]} 5. cxd5 {[%clk 0:03:02]}  Nxd5 {[%clk 0:02:56]} 6. a3 {[%clk 0:03:03]}  Bd6 {[%clk 0:02:55]} 7. Qc2 {[%clk 0:03:03]}  O-O {[%clk 0:02:52]} 8. Nf3 {[%clk 0:03:01]}  Qe7 {[%clk 0:02:49]} 9. d3 {[%clk 0:03:01]}  a5 {[%clk 0:02:41]} 10. Nbd2 {[%clk 0:03:00]}  f5 {[%clk 0:02:32]} 11. Be2 {[%clk 0:02:58]}  Bd7 {[%clk 0:02:30]} 12. O-O {[%clk 0:02:57]}  Kh8 {[%clk 0:02:28]} 13. Nc4 {[%clk 0:02:53]}  b5 {[%clk 0:02:10]} 14. Nxd6 {[%clk 0:02:52]}  cxd6 {[%clk 0:02:10]} 15. Rfe1 {[%clk 0:02:43]}  Rac8 {[%clk 0:02:06]} 16. Qd2 {[%clk 0:02:43]}  Be6 {[%clk 0:01:53]} 17. Rac1 {[%clk 0:02:17]}  Qb7 {[%clk 0:01:46]} 18. Bf1 {[%clk 0:01:39]}  h6 {[%clk 0:01:42]} 19. e4 {[%clk 0:01:21]}  Nf6 {[%clk 0:01:29]} 20. exf5 {[%clk 0:01:11]}  Bxf5 {[%clk 0:01:30]} 21. d4 {[%clk 0:01:05]}  e4 {[%clk 0:01:30]} 22. Nh4 {[%clk 0:01:02]}  Bh7 {[%clk 0:01:30]} 23. d5 {[%clk 0:01:01]}  Ne5 {[%clk 0:01:17]} 24. Rxc8 {[%clk 0:00:44]}  Rxc8 {[%clk 0:01:15]} 25. f4 {[%clk 0:00:20]}  exf3 {[%clk 0:01:09]} 26. Nxf3 {[%clk 0:00:20]}  Nxf3+ {[%clk 0:00:42]} 27. gxf3 {[%clk 0:00:21]}  Rc2 {[%clk 0:00:30]} 28. Qd4 {[%clk 0:00:21]}  Qf7 {[%clk 0:00:27]} 29. Bxb5 {[%clk 0:00:17]}  Qg6+ {[%clk 0:00:26]} 30. Qg4 {[%clk 0:00:13]}  Nxg4 {[%clk 0:00:25]} 31. Re8+ {[%clk 0:00:14]}  Qxe8 {[%clk 0:00:25]} 32. Bxe8 {[%clk 0:00:14]}  Rxb2 {[%clk 0:00:23]} 0-1


[Site "https://www.chess.com"]

[Event "Titled Tuesday Blitz May 30 Early 2023"]
[White "Kravtsiv, Martyn"]
[Black "Ibadov, Dashgyn"]
[WhiteFideId "14113147"]
[BlackFideId "24107514"]
[WhiteElo "2695"]
[BlackElo "2208"]
[Result "1-0"]
[Round "04"]
[TimeControl "180+2"]
[Date "2023.05.30"]
[WhiteClock "0:01:46"]
[BlackClock "0:00:13"]

1. e4 {[%clk 0:03:00]}  e6 {[%clk 0:02:59]} 2. d4 {[%clk 0:03:00]}  d5 {[%clk 0:03:00]} 3. e5 {[%clk 0:03:00]}  c5 {[%clk 0:03:00]} 4. c3 {[%clk 0:03:00]}  Qb6 {[%clk 0:03:01]} 5. Nf3 {[%clk 0:03:00]}  Nc6 {[%clk 0:03:01]} 6. Be2 {[%clk 0:03:00]}  cxd4 {[%clk 0:02:59]} 7. cxd4 {[%clk 0:03:00]}  Nh6 {[%clk 0:03:00]} 8. Bxh6 {[%clk 0:02:55]}  gxh6 {[%clk 0:02:46]} 9. Qd2 {[%clk 0:02:53]}  Rg8 {[%clk 0:02:38]} 10. O-O {[%clk 0:02:51]}  Rg4 {[%clk 0:02:31]} 11. h3 {[%clk 0:02:50]}  Rxd4 {[%clk 0:02:24]} 12. Nxd4 {[%clk 0:02:50]}  Qxd4 {[%clk 0:02:21]} 13. Qxd4 {[%clk 0:02:48]}  Nxd4 {[%clk 0:02:21]} 14. Bd3 {[%clk 0:02:48]}  Bg7 {[%clk 0:02:09]} 15. Nc3 {[%clk 0:02:37]}  Bxe5 {[%clk 0:01:56]} 16. Nxd5 {[%clk 0:02:36]}  Kf8 {[%clk 0:01:35]} 17. Rfe1 {[%clk 0:02:29]}  Nc6 {[%clk 0:01:34]} 18. Nc3 {[%clk 0:02:25]}  Bd7 {[%clk 0:01:30]} 19. Rad1 {[%clk 0:02:23]}  Be8 {[%clk 0:01:27]} 20. Be4 {[%clk 0:02:04]}  Bf6 {[%clk 0:01:17]} 21. Nb5 {[%clk 0:01:58]}  Bxb2 {[%clk 0:00:58]} 22. Nc7 {[%clk 0:01:57]}  Rc8 {[%clk 0:00:57]} 23. Nxe8 {[%clk 0:01:57]}  Kxe8 {[%clk 0:00:52]} 24. Bxh7 {[%clk 0:01:55]}  Bc3 {[%clk 0:00:29]} 25. Re3 {[%clk 0:01:52]}  Bd4 {[%clk 0:00:25]} 26. Re2 {[%clk 0:01:50]}  Ke7 {[%clk 0:00:22]} 27. Be4 {[%clk 0:01:48]}  e5 {[%clk 0:00:20]} 28. Bxc6 {[%clk 0:01:47]}  bxc6 {[%clk 0:00:13]} 29. Rxd4 {[%clk 0:01:46]} 1-0


[Site "https://www.chess.com"]

[Event "Titled Tuesday Blitz May 30 Early 2023"]
[White "Hambleton, Aman"]
[Black "OPQRC"]
[WhiteFideId "2606577"]
[WhiteElo "2511"]
[BlackElo "2539"]
[Result "0-1"]
[Round "04"]
[TimeControl "180+2"]
[Date "2023.05.30"]
[WhiteClock "0:00:02"]
[BlackClock "0:00:05"]

1. d4 {[%clk 0:03:00]}  Nf6 {[%clk 0:02:59]} 2. Bf4 {[%clk 0:02:55]}  g6 {[%clk 0:02:57]} 3. e3 {[%clk 0:02:42]}  Bg7 {[%clk 0:02:57]} 4. h3 {[%clk 0:02:43]}  O-O {[%clk 0:02:57]} 5. Nf3 {[%clk 0:02:41]}  d6 {[%clk 0:02:58]} 6. c3 {[%clk 0:02:42]}  Nfd7 {[%clk 0:02:57]} 7. Bh2 {[%clk 0:02:41]}  e5 {[%clk 0:02:56]} 8. a4 {[%clk 0:02:42]}  e4 {[%clk 0:02:53]} 9. Nfd2 {[%clk 0:02:42]}  f5 {[%clk 0:02:53]} 10. a5 {[%clk 0:02:42]}  a6 {[%clk 0:02:51]} 11. c4 {[%clk 0:02:42]}  Nc6 {[%clk 0:02:44]} 12. Nc3 {[%clk 0:02:36]}  Nf6 {[%clk 0:02:41]} 13. Be2 {[%clk 0:02:27]}  g5 {[%clk 0:02:36]} 14. Nd5 {[%clk 0:01:54]}  Nxd5 {[%clk 0:02:33]} 15. cxd5 {[%clk 0:01:55]}  Ne7 {[%clk 0:02:33]} 16. Qb3 {[%clk 0:01:52]}  Ng6 {[%clk 0:02:32]} 17. g4 {[%clk 0:00:39]}  Qe7 {[%clk 0:02:17]} 18. gxf5 {[%clk 0:00:29]}  Bxf5 {[%clk 0:02:18]} 19. Bg3 {[%clk 0:00:21]}  Rab8 {[%clk 0:02:10]} 20. Rc1 {[%clk 0:00:15]}  Rf7 {[%clk 0:02:07]} 21. Rc4 {[%clk 0:00:13]}  Kh8 {[%clk 0:01:53]} 22. Rb4 {[%clk 0:00:12]}  Rbf8 {[%clk 0:01:28]} 23. Rxb7 {[%clk 0:00:10]}  Bc8 {[%clk 0:01:10]} 24. Rb8 {[%clk 0:00:09]}  Nf4 {[%clk 0:01:08]} 25. Rh2 {[%clk 0:00:03]}  Nxe2 {[%clk 0:00:58]} 26. Kxe2 {[%clk 0:00:03]}  h5 {[%clk 0:00:58]} 27. h4 {[%clk 0:00:03]}  gxh4 {[%clk 0:00:36]} 28. Rxh4 {[%clk 0:00:03]}  Bg4+ {[%clk 0:00:31]} 29. Rxg4 {[%clk 0:00:02]}  hxg4 {[%clk 0:00:30]} 30. Rxf8+ {[%clk 0:00:03]}  Qxf8 {[%clk 0:00:30]} 31. Nxe4 {[%clk 0:00:02]}  Re7 {[%clk 0:00:25]} 32. Qc2 {[%clk 0:00:01]}  Qf3+ {[%clk 0:00:23]} 33. Kd2 {[%clk 0:00:01]}  Qxe4 {[%clk 0:00:20]} 34. Qc4 {[%clk 0:00:01]}  Rf7 {[%clk 0:00:17]} 35. Qxa6 {[%clk 0:00:02]}  Bxd4 {[%clk 0:00:15]} 36. Qc8+ {[%clk 0:00:02]}  Kg7 {[%clk 0:00:15]} 37. exd4 {[%clk 0:00:02]}  Qxd4+ {[%clk 0:00:14]} 38. Kc2 {[%clk 0:00:03]}  Qc4+ {[%clk 0:00:13]} 39. Kb1 {[%clk 0:00:03]}  Qxd5 {[%clk 0:00:10]} 40. Qxg4+ {[%clk 0:00:03]}  Kf8 {[%clk 0:00:09]} 41. Qc8+ {[%clk 0:00:03]}  Kg7 {[%clk 0:00:09]} 42. Qg4+ {[%clk 0:00:04]}  Kf8 {[%clk 0:00:09]} 43. Qc8+ {[%clk 0:00:04]}  Kg7 {[%clk 0:00:10]} 44. a6 {[%clk 0:00:02]}  Qd1+ {[%clk 0:00:09]} 45. Ka2 {[%clk 0:00:02]}  Re7 {[%clk 0:00:06]} 46. Qf5 {[%clk 0:00:01]}  Qa4+ {[%clk 0:00:05]} 47. Kb1 {[%clk 0:00:02]}  Re1# {[%clk 0:00:05]} 0-1


[Site "https://www.chess.com"]

[Event "Titled Tuesday Blitz May 30 Early 2023"]
[White "Dudzinski, Pawel"]
[Black "Mischuk, Dmitry"]
[WhiteFideId "1117890"]
[BlackFideId "14118734"]
[WhiteElo "2099"]
[BlackElo "2256"]
[Result "0-1"]
[Round "04"]
[TimeControl "180+2"]
[Date "2023.05.30"]
[WhiteClock "0:00:01"]
[BlackClock "0:00:29"]

1. e4 {[%clk 0:02:52]}  c5 {[%clk 0:02:59]} 2. c4 {[%clk 0:02:53]}  Nc6 {[%clk 0:02:57]} 3. Nc3 {[%clk 0:02:53]}  e6 {[%clk 0:02:56]} 4. g3 {[%clk 0:02:54]}  Nf6 {[%clk 0:02:55]} 5. Bg2 {[%clk 0:02:53]}  g6 {[%clk 0:02:54]} 6. Nge2 {[%clk 0:02:52]}  Bg7 {[%clk 0:02:51]} 7. O-O {[%clk 0:02:51]}  O-O {[%clk 0:02:50]} 8. d3 {[%clk 0:02:37]}  d6 {[%clk 0:02:49]} 9. Rb1 {[%clk 0:02:35]}  Nd7 {[%clk 0:02:46]} 10. a3 {[%clk 0:02:33]}  Nd4 {[%clk 0:02:41]} 11. b4 {[%clk 0:02:31]}  b6 {[%clk 0:02:12]} 12. Nxd4 {[%clk 0:02:28]}  cxd4 {[%clk 0:02:09]} 13. Ne2 {[%clk 0:02:28]}  Bb7 {[%clk 0:02:08]} 14. f4 {[%clk 0:02:28]}  f5 {[%clk 0:01:58]} 15. exf5 {[%clk 0:02:23]}  Bxg2 {[%clk 0:01:58]} 16. Kxg2 {[%clk 0:02:23]}  gxf5 {[%clk 0:01:58]} 17. Bb2 {[%clk 0:02:05]}  e5 {[%clk 0:01:53]} 18. fxe5 {[%clk 0:02:06]}  dxe5 {[%clk 0:01:53]} 19. Qd2 {[%clk 0:02:05]}  Qc7 {[%clk 0:01:50]} 20. g4 {[%clk 0:01:55]}  Qc6+ {[%clk 0:01:43]} 21. Kg1 {[%clk 0:01:53]}  Qg6 {[%clk 0:01:43]} 22. Ng3 {[%clk 0:01:43]}  fxg4 {[%clk 0:01:42]} 23. Qe2 {[%clk 0:01:30]}  Bh6 {[%clk 0:01:15]} 24. Bc1 {[%clk 0:01:19]}  Bf4 {[%clk 0:01:09]} 25. Bd2 {[%clk 0:01:09]}  Rf7 {[%clk 0:01:07]} 26. Rf2 {[%clk 0:00:44]}  Raf8 {[%clk 0:01:06]} 27. Rbf1 {[%clk 0:00:44]}  h5 {[%clk 0:01:00]} 28. Ne4 {[%clk 0:00:38]}  Rf5 {[%clk 0:00:41]} 29. Kh1 {[%clk 0:00:36]}  Kh7 {[%clk 0:00:35]} 30. Ng3 {[%clk 0:00:21]}  R5f7 {[%clk 0:00:34]} 31. Ne4 {[%clk 0:00:20]}  Bxd2 {[%clk 0:00:33]} 32. Qxd2 {[%clk 0:00:19]}  Rxf2 {[%clk 0:00:27]} 33. Rxf2 {[%clk 0:00:20]}  Rxf2 {[%clk 0:00:26]} 34. Qxf2 {[%clk 0:00:21]}  Kg7 {[%clk 0:00:27]} 35. Kg2 {[%clk 0:00:19]}  Nf6 {[%clk 0:00:27]} 36. Nxf6 {[%clk 0:00:16]}  Qxf6 {[%clk 0:00:28]} 37. Qe2 {[%clk 0:00:16]}  Qf5 {[%clk 0:00:28]} 38. Kg3 {[%clk 0:00:15]}  Kg6 {[%clk 0:00:26]} 39. Kg2 {[%clk 0:00:14]}  Kg5 {[%clk 0:00:27]} 40. Kg3 {[%clk 0:00:13]}  Qf4+ {[%clk 0:00:26]} 41. Kg2 {[%clk 0:00:13]}  h4 {[%clk 0:00:27]} 42. c5 {[%clk 0:00:08]}  h3+ {[%clk 0:00:27]} 43. Kg1 {[%clk 0:00:08]}  bxc5 {[%clk 0:00:28]} 44. bxc5 {[%clk 0:00:08]}  Qc1+ {[%clk 0:00:28]} 45. Qf1 {[%clk 0:00:08]}  Qxc5 {[%clk 0:00:29]} 46. Qf7 {[%clk 0:00:04]}  Qc1+ {[%clk 0:00:29]} 47. Kf2 {[%clk 0:00:03]}  Qd2+ {[%clk 0:00:29]} 48. Kf1 {[%clk 0:00:02]}  Qxd3+ {[%clk 0:00:29]} 49. Ke1 {[%clk 0:00:03]}  Qe4+ {[%clk 0:00:28]} 50. Kd2 {[%clk 0:00:03]}  Qf4+ {[%clk 0:00:28]} 51. Qxf4+ {[%clk 0:00:01]}  Kxf4 {[%clk 0:00:29]} 0-1


[Site "https://www.chess.com"]

[Event "Titled Tuesday Blitz May 30 Early 2023"]
[White "Naroditsky, Daniel"]
[Black "Janik, Igor"]
[WhiteFideId "2026961"]
[BlackFideId "1159259"]
[WhiteElo "2633"]
[BlackElo "2484"]
[Result "1-0"]
[Round "04"]
[TimeControl "180+2"]
[Date "2023.05.30"]
[WhiteClock "0:01:08"]
[BlackClock "0:01:15"]

1. e4 {[%clk 0:03:00]}  c6 {[%clk 0:03:00]} 2. d4 {[%clk 0:02:56]}  d5 {[%clk 0:03:01]} 3. f3 {[%clk 0:02:53]}  e6 {[%clk 0:02:56]} 4. Nc3 {[%clk 0:02:53]}  Bb4 {[%clk 0:02:53]} 5. a3 {[%clk 0:02:52]}  Ba5 {[%clk 0:02:51]} 6. Bd3 {[%clk 0:02:42]}  Ne7 {[%clk 0:02:52]} 7. Ne2 {[%clk 0:02:42]}  Ng6 {[%clk 0:02:47]} 8. O-O {[%clk 0:02:42]}  Nd7 {[%clk 0:02:48]} 9. f4 {[%clk 0:02:36]}  dxe4 {[%clk 0:02:46]} 10. Nxe4 {[%clk 0:02:35]}  O-O {[%clk 0:02:46]} 11. N2g3 {[%clk 0:02:29]}  Bb6 {[%clk 0:02:45]} 12. Be3 {[%clk 0:02:25]}  Nf6 {[%clk 0:02:40]} 13. Nxf6+ {[%clk 0:02:26]}  Qxf6 {[%clk 0:02:41]} 14. Ne4 {[%clk 0:02:23]}  Qd8 {[%clk 0:02:41]} 15. c3 {[%clk 0:02:23]}  h6 {[%clk 0:02:34]} 16. Qh5 {[%clk 0:02:23]}  Qd5 {[%clk 0:02:30]} 17. Qe2 {[%clk 0:02:02]}  Ne7 {[%clk 0:02:20]} 18. Rf3 {[%clk 0:01:55]}  Nf5 {[%clk 0:02:18]} 19. Bf2 {[%clk 0:01:56]}  Bd7 {[%clk 0:02:00]} 20. a4 {[%clk 0:01:42]}  Be8 {[%clk 0:01:46]} 21. Rh3 {[%clk 0:01:40]}  Qd7 {[%clk 0:01:32]} 22. a5 {[%clk 0:01:14]}  Bc7 {[%clk 0:01:31]} 23. Qg4 {[%clk 0:01:15]}  f6 {[%clk 0:01:28]} 24. Nc5 {[%clk 0:01:15]}  Qf7 {[%clk 0:01:22]} 25. Bc4 {[%clk 0:01:08]}  Bd7 {[%clk 0:01:18]} 26. Nxd7 {[%clk 0:01:07]}  Qxd7 {[%clk 0:01:15]} 27. Qxf5 {[%clk 0:01:08]} 1-0


[Site "https://www.chess.com"]

[Event "Titled Tuesday Blitz May 30 Early 2023"]
[White "Gorovets, Andrey"]
[Black "Nepomniachtchi, Ian"]
[WhiteFideId "13504037"]
[BlackFideId "4168119"]
[WhiteElo "2459"]
[BlackElo "2781"]
[Result "0-1"]
[Round "04"]
[TimeControl "180+2"]
[Date "2023.05.30"]
[WhiteClock "0:00:03"]
[BlackClock "0:00:29"]

1. Nf3 {[%clk 0:03:00]}  c5 {[%clk 0:02:59]} 2. c4 {[%clk 0:02:59]}  g6 {[%clk 0:03:00]} 3. d4 {[%clk 0:02:59]}  cxd4 {[%clk 0:03:00]} 4. Nxd4 {[%clk 0:03:00]}  Bg7 {[%clk 0:02:59]} 5. e4 {[%clk 0:03:00]}  Qb6 {[%clk 0:02:59]} 6. Nb3 {[%clk 0:02:59]}  Nc6 {[%clk 0:02:56]} 7. Be2 {[%clk 0:02:55]}  d6 {[%clk 0:02:45]} 8. O-O {[%clk 0:02:52]}  Be6 {[%clk 0:02:45]} 9. Be3 {[%clk 0:02:28]}  Qc7 {[%clk 0:02:45]} 10. Qd2 {[%clk 0:02:27]}  Ne5 {[%clk 0:02:39]} 11. Na3 {[%clk 0:02:19]}  Nf6 {[%clk 0:02:37]} 12. h3 {[%clk 0:02:11]}  Nxe4 {[%clk 0:02:32]} 13. Qd1 {[%clk 0:02:03]}  O-O {[%clk 0:02:31]} 14. Rc1 {[%clk 0:02:00]}  a6 {[%clk 0:02:28]} 15. Nd4 {[%clk 0:01:59]}  Bd7 {[%clk 0:02:24]} 16. Qc2 {[%clk 0:01:58]}  f5 {[%clk 0:02:15]} 17. f3 {[%clk 0:01:50]}  Nc5 {[%clk 0:02:14]} 18. b4 {[%clk 0:01:43]}  Ne6 {[%clk 0:02:13]} 19. Qd2 {[%clk 0:01:40]}  f4 {[%clk 0:02:05]} 20. Bf2 {[%clk 0:01:39]}  Nxd4 {[%clk 0:02:03]} 21. Bxd4 {[%clk 0:01:40]}  a5 {[%clk 0:01:47]} 22. Nb5 {[%clk 0:01:34]}  Qd8 {[%clk 0:01:46]} 23. c5 {[%clk 0:01:34]}  axb4 {[%clk 0:01:31]} 24. Bxe5 {[%clk 0:01:16]}  Bxe5 {[%clk 0:01:24]} 25. cxd6 {[%clk 0:00:52]}  Qb6+ {[%clk 0:01:17]} 26. Kh1 {[%clk 0:00:50]}  exd6 {[%clk 0:01:17]} 27. Bc4+ {[%clk 0:00:43]}  Kh8 {[%clk 0:01:16]} 28. Qxb4 {[%clk 0:00:44]}  Qa5 {[%clk 0:00:59]} 29. Qb3 {[%clk 0:00:33]}  d5 {[%clk 0:00:54]} 30. Bd3 {[%clk 0:00:23]}  Qxa2 {[%clk 0:00:52]} 31. Qxa2 {[%clk 0:00:20]}  Rxa2 {[%clk 0:00:53]} 32. Rfe1 {[%clk 0:00:21]}  Re8 {[%clk 0:00:44]} 33. Nc7 {[%clk 0:00:20]}  Bxc7 {[%clk 0:00:41]} 34. Rxe8+ {[%clk 0:00:21]}  Bxe8 {[%clk 0:00:42]} 35. Rxc7 {[%clk 0:00:22]}  Bc6 {[%clk 0:00:41]} 36. Kh2 {[%clk 0:00:14]}  Rd2 {[%clk 0:00:40]} 37. Bf1 {[%clk 0:00:14]}  d4 {[%clk 0:00:40]} 38. h4 {[%clk 0:00:14]}  Bxf3 {[%clk 0:00:38]} 39. h5 {[%clk 0:00:07]}  Bxh5 {[%clk 0:00:32]} 40. Kh3 {[%clk 0:00:06]}  g5 {[%clk 0:00:32]} 41. Rxb7 {[%clk 0:00:04]}  Rd1 {[%clk 0:00:29]} 42. Bc4 {[%clk 0:00:03]}  Rh1# {[%clk 0:00:29]} 0-1


[Site "https://www.chess.com"]

[Event "Titled Tuesday Blitz May 30 Early 2023"]
[White "Boyer, Mahel"]
[Black "Martinez Alcantara, Jose Eduardo"]
[WhiteFideId "45102422"]
[BlackFideId "3805662"]
[WhiteElo "2439"]
[BlackElo "2711"]
[Result "0-1"]
[Round "04"]
[TimeControl "180+2"]
[Date "2023.05.30"]
[WhiteClock "0:00:01"]
[BlackClock "0:00:14"]

1. e4 {[%clk 0:02:52]}  c5 {[%clk 0:02:59]} 2. Nf3 {[%clk 0:02:48]}  d6 {[%clk 0:02:59]} 3. d4 {[%clk 0:02:48]}  cxd4 {[%clk 0:02:58]} 4. Nxd4 {[%clk 0:02:49]}  a6 {[%clk 0:02:58]} 5. Nc3 {[%clk 0:02:50]}  e6 {[%clk 0:02:58]} 6. f4 {[%clk 0:02:48]}  b5 {[%clk 0:02:57]} 7. Be3 {[%clk 0:02:40]}  Bb7 {[%clk 0:02:55]} 8. a3 {[%clk 0:02:41]}  Nf6 {[%clk 0:02:53]} 9. Qf3 {[%clk 0:02:41]}  h5 {[%clk 0:02:51]} 10. O-O-O {[%clk 0:02:40]}  Nbd7 {[%clk 0:02:50]} 11. Bxb5 {[%clk 0:02:40]}  axb5 {[%clk 0:02:49]} 12. Ndxb5 {[%clk 0:02:40]}  Qb8 {[%clk 0:02:42]} 13. f5 {[%clk 0:02:29]}  e5 {[%clk 0:02:15]} 14. h3 {[%clk 0:02:07]}  h4 {[%clk 0:02:10]} 15. a4 {[%clk 0:01:02]}  Be7 {[%clk 0:02:03]} 16. g4 {[%clk 0:01:02]}  hxg3 {[%clk 0:02:01]} 17. Qxg3 {[%clk 0:01:01]}  Rh7 {[%clk 0:01:39]} 18. Bg5 {[%clk 0:00:41]}  Kf8 {[%clk 0:01:38]} 19. Rhg1 {[%clk 0:00:36]}  Bc6 {[%clk 0:01:38]} 20. b3 {[%clk 0:00:23]}  Bxe4 {[%clk 0:01:28]} 21. Nxe4 {[%clk 0:00:20]}  Nxe4 {[%clk 0:01:29]} 22. Bxe7+ {[%clk 0:00:19]}  Kxe7 {[%clk 0:01:30]} 23. Qf3 {[%clk 0:00:12]}  Ndf6 {[%clk 0:01:28]} 24. Rge1 {[%clk 0:00:09]}  Rh4 {[%clk 0:01:25]} 25. Nxd6 {[%clk 0:00:03]}  Nxd6 {[%clk 0:01:13]} 26. Rxe5+ {[%clk 0:00:03]}  Kf8 {[%clk 0:01:13]} 27. Rxd6 {[%clk 0:00:04]}  Kg8 {[%clk 0:01:14]} 28. Qd3 {[%clk 0:00:03]}  Rxh3 {[%clk 0:01:09]} 29. Qxh3 {[%clk 0:00:04]}  Qxd6 {[%clk 0:01:08]} 30. Qc3 {[%clk 0:00:04]}  Qa3+ {[%clk 0:00:55]} 31. Kb1 {[%clk 0:00:04]}  Rd8 {[%clk 0:00:54]} 32. Re1 {[%clk 0:00:05]}  Nd5 {[%clk 0:00:53]} 33. Qb2 {[%clk 0:00:05]}  Qb4 {[%clk 0:00:53]} 34. Rg1 {[%clk 0:00:05]}  Nc3+ {[%clk 0:00:53]} 35. Ka1 {[%clk 0:00:05]}  Ra8 {[%clk 0:00:49]} 36. Qc1 {[%clk 0:00:04]}  Nxa4 {[%clk 0:00:19]} 37. Rxg7+ {[%clk 0:00:03]}  Kxg7 {[%clk 0:00:20]} 38. Qg5+ {[%clk 0:00:03]}  Kf8 {[%clk 0:00:19]} 39. Qh6+ {[%clk 0:00:03]}  Ke7 {[%clk 0:00:19]} 40. f6+ {[%clk 0:00:01]}  Kd7 {[%clk 0:00:16]} 41. Qh3+ {[%clk 0:00:02]}  Kc7 {[%clk 0:00:16]} 42. Qg3+ {[%clk 0:00:02]}  Kb7 {[%clk 0:00:17]} 43. Qf3+ {[%clk 0:00:02]}  Ka7 {[%clk 0:00:17]} 44. Qe3+ {[%clk 0:00:02]}  Nb6 {[%clk 0:00:18]} 45. Kb2 {[%clk 0:00:02]}  Rc8 {[%clk 0:00:15]} 46. Qe7+ {[%clk 0:00:02]}  Qxe7 {[%clk 0:00:14]} 47. fxe7 {[%clk 0:00:01]}  Re8 {[%clk 0:00:14]} 0-1


[Site "https://www.chess.com"]